[Event "Titled Tuesday Blitz October 19 2021"]
[White "Mischuk, Dmitry"]
[Black "Nguyen, Ngoc Truong Son"]
[WhiteFideId "14118734"]
[BlackFideId "12401110"]
[WhiteElo "2369"]
[BlackElo "2596"]
[Result "1/2-1/2"]
[Round "05"]
[TimeControl "180+1"]
[Date "2021.10.19"]
[WhiteClock "0:00:05"]
[BlackClock "0:00:04"]

1. e4 {[%clk 0:03:00]}  e5 {[%clk 0:02:59]} 2. Nf3 {[%clk 0:02:59]}  Nf6 {[%clk 0:03:00]} 3. Nxe5 {[%clk 0:02:57]}  d6 {[%clk 0:03:00]} 4. Nf3 {[%clk 0:02:57]}  Nxe4 {[%clk 0:03:01]} 5. c4 {[%clk 0:02:57]}  Nf6 {[%clk 0:02:53]} 6. Nc3 {[%clk 0:02:55]}  g6 {[%clk 0:02:44]} 7. d4 {[%clk 0:02:53]}  Bg7 {[%clk 0:02:45]} 8. Bd3 {[%clk 0:02:53]}  O-O {[%clk 0:02:44]} 9. O-O {[%clk 0:02:53]}  Bg4 {[%clk 0:02:41]} 10. h3 {[%clk 0:02:51]}  Bxf3 {[%clk 0:02:41]} 11. Qxf3 {[%clk 0:02:49]}  Nc6 {[%clk 0:02:41]} 12. Be3 {[%clk 0:02:45]}  Nd7 {[%clk 0:02:37]} 13. Qf4 {[%clk 0:02:04]}  Qf6 {[%clk 0:02:12]} 14. Qxf6 {[%clk 0:01:50]}  Bxf6 {[%clk 0:02:06]} 15. Nd5 {[%clk 0:01:47]}  Bxd4 {[%clk 0:02:06]} 16. Bxd4 {[%clk 0:01:46]}  Nxd4 {[%clk 0:02:06]} 17. Nxc7 {[%clk 0:01:46]}  Rac8 {[%clk 0:02:05]} 18. Nd5 {[%clk 0:01:46]}  Kg7 {[%clk 0:01:55]} 19. b3 {[%clk 0:01:39]}  Rfe8 {[%clk 0:01:40]} 20. Rad1 {[%clk 0:01:34]}  Nc5 {[%clk 0:01:28]} 21. Bxg6 {[%clk 0:01:14]}  Ne2+ {[%clk 0:01:26]} 22. Kh2 {[%clk 0:01:07]}  hxg6 {[%clk 0:01:27]} 23. g3 {[%clk 0:01:04]}  Ne6 {[%clk 0:01:23]} 24. Rd2 {[%clk 0:00:52]}  N2d4 {[%clk 0:01:20]} 25. Kg2 {[%clk 0:00:52]}  Nc6 {[%clk 0:01:16]} 26. Rfd1 {[%clk 0:00:52]}  Nc5 {[%clk 0:01:14]} 27. Nc3 {[%clk 0:00:43]}  Ne4 {[%clk 0:00:57]} 28. Nxe4 {[%clk 0:00:43]}  Rxe4 {[%clk 0:00:58]} 29. Rxd6 {[%clk 0:00:44]}  Re2 {[%clk 0:00:55]} 30. R1d2 {[%clk 0:00:44]}  Rxd2 {[%clk 0:00:53]} 31. Rxd2 {[%clk 0:00:45]}  Rc7 {[%clk 0:00:51]} 32. Kf3 {[%clk 0:00:42]}  Kf6 {[%clk 0:00:48]} 33. h4 {[%clk 0:00:41]}  Ne5+ {[%clk 0:00:45]} 34. Kf4 {[%clk 0:00:40]}  Ke6 {[%clk 0:00:42]} 35. g4 {[%clk 0:00:33]}  f6 {[%clk 0:00:39]} 36. Rd5 {[%clk 0:00:19]}  b6 {[%clk 0:00:25]} 37. f3 {[%clk 0:00:18]}  Rh7 {[%clk 0:00:17]} 38. Kg3 {[%clk 0:00:18]}  f5 {[%clk 0:00:15]} 39. Rd8 {[%clk 0:00:17]}  fxg4 {[%clk 0:00:13]} 40. fxg4 {[%clk 0:00:17]}  Rf7 {[%clk 0:00:13]} 41. Re8+ {[%clk 0:00:15]}  Kd6 {[%clk 0:00:13]} 42. h5 {[%clk 0:00:14]}  g5 {[%clk 0:00:11]} 43. Rg8 {[%clk 0:00:13]}  Rf3+ {[%clk 0:00:09]} 44. Kg2 {[%clk 0:00:13]}  Rf4 {[%clk 0:00:05]} 45. Rxg5 {[%clk 0:00:13]}  Rxg4+ {[%clk 0:00:04]} 46. Rxg4 {[%clk 0:00:13]}  Nxg4 {[%clk 0:00:05]} 47. Kf3 {[%clk 0:00:13]}  Nf6 {[%clk 0:00:05]} 48. h6 {[%clk 0:00:12]}  Ke5 {[%clk 0:00:05]} 49. b4 {[%clk 0:00:03]}  Kf5 {[%clk 0:00:05]} 50. c5 {[%clk 0:00:04]}  bxc5 {[%clk 0:00:05]} 51. bxc5 {[%clk 0:00:04]}  Ke6 {[%clk 0:00:03]} 52. Kf4 {[%clk 0:00:04]}  Kd5 {[%clk 0:00:03]} 53. Kf5 {[%clk 0:00:04]}  Nh7 {[%clk 0:00:03]} 54. Kg6 {[%clk 0:00:04]}  Nf8+ {[%clk 0:00:03]} 55. Kf7 {[%clk 0:00:04]}  Nh7 {[%clk 0:00:03]} 56. Kg6 {[%clk 0:00:04]}  Nf8+ {[%clk 0:00:04]} 57. Kf7 {[%clk 0:00:05]}  Nh7 {[%clk 0:00:04]} 58. Kg6 {[%clk 0:00:05]} 1/2-1/2


[Site "https://www.chess.com"]

[Event "Titled Tuesday Blitz October 19 2021"]
[White "Moskalenko, Alexander"]
[Black "Piesik, Piotr"]
[WhiteFideId "4155351"]
[BlackFideId "1136194"]
[WhiteElo "2515"]
[BlackElo "2336"]
[Result "0-1"]
[Round "05"]
[TimeControl "180+1"]
[Date "2021.10.19"]
[WhiteClock "0:02:11"]
[BlackClock "0:02:06"]

1. e4 {[%clk 0:02:59]}  g6 {[%clk 0:02:59]} 2. d4 {[%clk 0:02:58]}  Bg7 {[%clk 0:02:59]} 3. Nc3 {[%clk 0:02:59]}  c6 {[%clk 0:03:00]} 4. Nf3 {[%clk 0:03:00]}  d6 {[%clk 0:03:00]} 5. h3 {[%clk 0:03:01]}  Nf6 {[%clk 0:02:59]} 6. Be3 {[%clk 0:03:02]}  O-O {[%clk 0:02:58]} 7. Qd2 {[%clk 0:03:02]}  b5 {[%clk 0:02:57]} 8. Bd3 {[%clk 0:02:58]}  Nbd7 {[%clk 0:02:55]} 9. Bh6 {[%clk 0:02:58]}  e5 {[%clk 0:02:55]} 10. Bxg7 {[%clk 0:02:58]}  Kxg7 {[%clk 0:02:54]} 11. a4 {[%clk 0:02:42]}  b4 {[%clk 0:02:52]} 12. Ne2 {[%clk 0:02:43]}  c5 {[%clk 0:02:49]} 13. dxe5 {[%clk 0:02:33]}  Nxe5 {[%clk 0:02:47]} 14. Nxe5 {[%clk 0:02:32]}  dxe5 {[%clk 0:02:48]} 15. Qe3 {[%clk 0:02:31]}  Qa5 {[%clk 0:02:43]} 16. O-O {[%clk 0:02:30]}  Be6 {[%clk 0:02:40]} 17. f4 {[%clk 0:02:30]}  c4 {[%clk 0:02:35]} 18. f5 {[%clk 0:02:20]}  cxd3 {[%clk 0:02:35]} 19. cxd3 {[%clk 0:02:19]}  Bd7 {[%clk 0:02:26]} 20. d4 {[%clk 0:02:19]}  exd4 {[%clk 0:02:24]} 21. Nxd4 {[%clk 0:02:19]}  Qe5 {[%clk 0:02:18]} 22. Rae1 {[%clk 0:02:15]}  Rae8 {[%clk 0:02:17]} 23. Qf3 {[%clk 0:02:11]}  Qxd4+ {[%clk 0:02:06]} 0-1


[Site "https://www.chess.com"]

[Event "Titled Tuesday Blitz October 19 2021"]
[White "Nakamura, Hikaru"]
[Black "Kamsky, Gata"]
[WhiteFideId "2016192"]
[BlackFideId "2000024"]
[WhiteElo "2884"]
[BlackElo "2603"]
[Result "1-0"]
[Round "05"]
[TimeControl "180+1"]
[Date "2021.10.19"]
[WhiteClock "0:00:08"]
[BlackClock "0:00:01"]

1. e4 {[%clk 0:03:00]}  e5 {[%clk 0:02:58]} 2. Nf3 {[%clk 0:03:00]}  Nc6 {[%clk 0:02:58]} 3. Bb5 {[%clk 0:02:59]}  Nf6 {[%clk 0:02:57]} 4. d3 {[%clk 0:02:56]}  d6 {[%clk 0:02:57]} 5. c3 {[%clk 0:02:55]}  Bd7 {[%clk 0:02:56]} 6. O-O {[%clk 0:02:53]}  g6 {[%clk 0:02:56]} 7. d4 {[%clk 0:02:47]}  Bg7 {[%clk 0:02:46]} 8. d5 {[%clk 0:02:42]}  Ne7 {[%clk 0:02:36]} 9. Bxd7+ {[%clk 0:02:40]}  Nxd7 {[%clk 0:02:35]} 10. c4 {[%clk 0:02:40]}  O-O {[%clk 0:02:34]} 11. Nc3 {[%clk 0:02:40]}  h6 {[%clk 0:02:34]} 12. a3 {[%clk 0:02:36]}  a5 {[%clk 0:02:32]} 13. Rb1 {[%clk 0:02:34]}  f5 {[%clk 0:02:31]} 14. b4 {[%clk 0:02:34]}  axb4 {[%clk 0:02:30]} 15. axb4 {[%clk 0:02:35]}  Nf6 {[%clk 0:02:24]} 16. Nd2 {[%clk 0:02:33]}  Kh8 {[%clk 0:02:08]} 17. Bb2 {[%clk 0:02:29]}  Qd7 {[%clk 0:02:01]} 18. Qe2 {[%clk 0:02:26]}  g5 {[%clk 0:01:57]} 19. c5 {[%clk 0:02:24]}  fxe4 {[%clk 0:01:55]} 20. cxd6 {[%clk 0:02:16]}  cxd6 {[%clk 0:01:54]} 21. Ndxe4 {[%clk 0:02:13]}  Nexd5 {[%clk 0:01:51]} 22. Nxf6 {[%clk 0:02:00]}  Nxf6 {[%clk 0:01:50]} 23. Rfd1 {[%clk 0:01:58]}  Rad8 {[%clk 0:01:29]} 24. Nd5 {[%clk 0:01:55]}  Qe6 {[%clk 0:01:23]} 25. Nxf6 {[%clk 0:01:43]}  Bxf6 {[%clk 0:01:21]} 26. Rbc1 {[%clk 0:01:43]}  Rc8 {[%clk 0:01:17]} 27. Qd3 {[%clk 0:01:30]}  Rxc1 {[%clk 0:01:11]} 28. Bxc1 {[%clk 0:01:31]}  Rd8 {[%clk 0:01:02]} 29. Qg6 {[%clk 0:01:27]}  Qe7 {[%clk 0:00:57]} 30. Qxh6+ {[%clk 0:01:24]}  Kg8 {[%clk 0:00:57]} 31. Qg6+ {[%clk 0:01:23]}  Qg7 {[%clk 0:00:55]} 32. Qe4 {[%clk 0:01:23]}  Qf7 {[%clk 0:00:52]} 33. Qg4 {[%clk 0:01:21]}  Qd7 {[%clk 0:00:49]} 34. Qf3 {[%clk 0:01:12]}  Qf7 {[%clk 0:00:48]} 35. Rd5 {[%clk 0:00:54]}  Be7 {[%clk 0:00:44]} 36. Qe4 {[%clk 0:00:41]}  Qh7 {[%clk 0:00:42]} 37. Qc4 {[%clk 0:00:37]}  Kf8 {[%clk 0:00:34]} 38. h3 {[%clk 0:00:32]}  Qf5 {[%clk 0:00:33]} 39. Be3 {[%clk 0:00:31]}  Rc8 {[%clk 0:00:31]} 40. Qb5 {[%clk 0:00:31]}  g4 {[%clk 0:00:27]} 41. hxg4 {[%clk 0:00:22]}  Qb1+ {[%clk 0:00:26]} 42. Qf1 {[%clk 0:00:21]}  Qxf1+ {[%clk 0:00:25]} 43. Kxf1 {[%clk 0:00:21]}  Rc4 {[%clk 0:00:26]} 44. Rb5 {[%clk 0:00:21]}  Rxg4 {[%clk 0:00:26]} 45. Rxb7 {[%clk 0:00:20]}  d5 {[%clk 0:00:26]} 46. Rd7 {[%clk 0:00:16]}  Rxb4 {[%clk 0:00:20]} 47. Rxd5 {[%clk 0:00:15]}  e4 {[%clk 0:00:20]} 48. g3 {[%clk 0:00:13]}  Kf7 {[%clk 0:00:19]} 49. Kg2 {[%clk 0:00:12]}  Bf6 {[%clk 0:00:19]} 50. Rf5 {[%clk 0:00:12]}  Ke6 {[%clk 0:00:19]} 51. Ra5 {[%clk 0:00:13]}  Be5 {[%clk 0:00:17]} 52. Ra6+ {[%clk 0:00:13]}  Kf5 {[%clk 0:00:17]} 53. Kh3 {[%clk 0:00:13]}  Bd4 {[%clk 0:00:09]} 54. Ra5+ {[%clk 0:00:13]}  Kg6 {[%clk 0:00:09]} 55. Kg4 {[%clk 0:00:14]}  Bxe3 {[%clk 0:00:08]} 56. fxe3 {[%clk 0:00:14]}  Rb1 {[%clk 0:00:08]} 57. Ra6+ {[%clk 0:00:14]}  Kg7 {[%clk 0:00:07]} 58. Kf4 {[%clk 0:00:14]}  Rg1 {[%clk 0:00:07]} 59. g4 {[%clk 0:00:14]}  Rb1 {[%clk 0:00:05]} 60. Re6 {[%clk 0:00:14]}  Rb5 {[%clk 0:00:05]} 61. Rxe4 {[%clk 0:00:14]}  Kf6 {[%clk 0:00:04]} 62. Ra4 {[%clk 0:00:14]}  Rc5 {[%clk 0:00:04]} 63. Ra6+ {[%clk 0:00:14]}  Kf7 {[%clk 0:00:05]} 64. e4 {[%clk 0:00:14]}  Rb5 {[%clk 0:00:05]} 65. g5 {[%clk 0:00:15]}  Rb1 {[%clk 0:00:05]} 66. g6+ {[%clk 0:00:14]}  Kg7 {[%clk 0:00:04]} 67. Rd6 {[%clk 0:00:14]}  Rb5 {[%clk 0:00:04]} 68. e5 {[%clk 0:00:15]}  Rb1 {[%clk 0:00:03]} 69. Rf6 {[%clk 0:00:07]}  Re1 {[%clk 0:00:02]} 70. Kg5 {[%clk 0:00:08]}  Rg1+ {[%clk 0:00:02]} 71. Kf5 {[%clk 0:00:08]}  Rb1 {[%clk 0:00:02]} 72. Rf7+ {[%clk 0:00:08]}  Kg8 {[%clk 0:00:02]} 73. Ra7 {[%clk 0:00:07]}  Rb6 {[%clk 0:00:01]} 74. e6 {[%clk 0:00:07]}  Rb1 {[%clk 0:00:01]} 75. Ra8+ {[%clk 0:00:07]}  Kg7 {[%clk 0:00:01]} 76. e7 {[%clk 0:00:08]} 1-0


[Site "https://www.chess.com"]

[Event "Titled Tuesday Blitz October 19 2021"]
[White "Obolenskikh, Dmitry"]
[Black "Paltrinieri, Nicholas"]
[WhiteFideId "4156013"]
[BlackFideId "828262"]
[WhiteElo "2541"]
[BlackElo "2254"]
[Result "0-1"]
[Round "05"]
[TimeControl "180+1"]
[Date "2021.10.19"]
[WhiteClock "0:00:12"]
[BlackClock "0:00:14"]

1. Nf3 {[%clk 0:03:00]}  e6 {[%clk 0:02:58]} 2. c4 {[%clk 0:03:00]}  f5 {[%clk 0:02:58]} 3. Nc3 {[%clk 0:02:59]}  Nf6 {[%clk 0:02:58]} 4. g3 {[%clk 0:02:58]}  d6 {[%clk 0:02:56]} 5. Bg2 {[%clk 0:02:58]}  Be7 {[%clk 0:02:53]} 6. O-O {[%clk 0:02:58]}  O-O {[%clk 0:02:53]} 7. d3 {[%clk 0:02:52]}  Nc6 {[%clk 0:02:52]} 8. Rb1 {[%clk 0:02:52]}  a5 {[%clk 0:02:52]} 9. a3 {[%clk 0:02:52]}  e5 {[%clk 0:02:52]} 10. b4 {[%clk 0:02:51]}  axb4 {[%clk 0:02:53]} 11. axb4 {[%clk 0:02:51]}  Qe8 {[%clk 0:02:54]} 12. Bg5 {[%clk 0:02:38]}  Qh5 {[%clk 0:02:46]} 13. b5 {[%clk 0:02:33]}  Nd8 {[%clk 0:02:28]} 14. Bxf6 {[%clk 0:02:33]}  Bxf6 {[%clk 0:02:28]} 15. Nd5 {[%clk 0:02:33]}  Ne6 {[%clk 0:02:28]} 16. e3 {[%clk 0:02:15]}  Bd8 {[%clk 0:02:11]} 17. Nd2 {[%clk 0:02:13]}  Qh6 {[%clk 0:02:11]} 18. Nb3 {[%clk 0:02:07]}  f4 {[%clk 0:02:02]} 19. exf4 {[%clk 0:01:50]}  exf4 {[%clk 0:02:02]} 20. Rb2 {[%clk 0:01:40]}  Ra3 {[%clk 0:01:36]} 21. Qc1 {[%clk 0:01:06]}  Qh5 {[%clk 0:01:25]} 22. Re1 {[%clk 0:00:47]}  f3 {[%clk 0:01:10]} 23. Bf1 {[%clk 0:00:47]}  Ng5 {[%clk 0:01:11]} 24. Nd4 {[%clk 0:00:33]}  Bh3 {[%clk 0:01:05]} 25. Bxh3 {[%clk 0:00:19]}  Qxh3 {[%clk 0:00:46]} 26. Ne3 {[%clk 0:00:18]}  Rxd3 {[%clk 0:00:44]} 27. Rd2 {[%clk 0:00:18]}  Rxd2 {[%clk 0:00:34]} 28. Qxd2 {[%clk 0:00:18]}  Re8 {[%clk 0:00:29]} 29. Qc2 {[%clk 0:00:17]}  Bf6 {[%clk 0:00:16]} 30. Ndf5 {[%clk 0:00:17]}  g6 {[%clk 0:00:14]} 31. c5 {[%clk 0:00:15]}  gxf5 {[%clk 0:00:14]} 32. b6 {[%clk 0:00:15]}  cxb6 {[%clk 0:00:14]} 33. cxd6 {[%clk 0:00:15]}  Bd4 {[%clk 0:00:14]} 34. Qc4+ {[%clk 0:00:15]}  Kf8 {[%clk 0:00:14]} 35. Qxd4 {[%clk 0:00:16]}  Rxe3 {[%clk 0:00:14]} 36. Qf6+ {[%clk 0:00:15]}  Nf7 {[%clk 0:00:15]} 37. Qe7+ {[%clk 0:00:12]}  Rxe7 {[%clk 0:00:14]} 38. dxe7+ {[%clk 0:00:12]}  Ke8 {[%clk 0:00:14]} 0-1


[Site "https://www.chess.com"]

[Event "Titled Tuesday Blitz October 19 2021"]
[White "Ovetchkin, Roman"]
[Black "Kezin, Roman"]
[WhiteFideId "4119991"]
[BlackFideId "24124621"]
[WhiteElo "2432"]
[BlackElo "2557"]
[Result "0-1"]
[Round "05"]
[TimeControl "180+1"]
[Date "2021.10.19"]
[WhiteClock "0:00:13"]
[BlackClock "0:00:29"]

1. d4 {[%clk 0:03:00]}  d5 {[%clk 0:02:59]} 2. c4 {[%clk 0:03:00]}  e6 {[%clk 0:03:00]} 3. Nf3 {[%clk 0:03:00]}  Nf6 {[%clk 0:03:00]} 4. g3 {[%clk 0:03:00]}  dxc4 {[%clk 0:02:53]} 5. Bg2 {[%clk 0:03:00]}  c6 {[%clk 0:02:54]} 6. Ne5 {[%clk 0:02:56]}  Bb4+ {[%clk 0:02:53]} 7. Bd2 {[%clk 0:02:56]}  Be7 {[%clk 0:02:49]} 8. e3 {[%clk 0:02:56]}  b5 {[%clk 0:02:49]} 9. b3 {[%clk 0:02:42]}  cxb3 {[%clk 0:02:47]} 10. axb3 {[%clk 0:02:41]}  Bb7 {[%clk 0:02:45]} 11. O-O {[%clk 0:02:28]}  O-O {[%clk 0:02:40]} 12. Qe2 {[%clk 0:02:18]}  Nfd7 {[%clk 0:02:30]} 13. Nd3 {[%clk 0:02:07]}  a5 {[%clk 0:02:21]} 14. Rc1 {[%clk 0:02:05]}  Qb6 {[%clk 0:02:22]} 15. Nc3 {[%clk 0:01:53]}  Na6 {[%clk 0:02:14]} 16. Ne4 {[%clk 0:01:51]}  b4 {[%clk 0:02:06]} 17. Qh5 {[%clk 0:01:41]}  f5 {[%clk 0:01:09]} 18. Ng5 {[%clk 0:01:40]}  Bxg5 {[%clk 0:01:01]} 19. Qxg5 {[%clk 0:01:39]}  c5 {[%clk 0:00:53]} 20. Bxb7 {[%clk 0:01:09]}  Qxb7 {[%clk 0:00:54]} 21. Rxa5 {[%clk 0:00:43]}  cxd4 {[%clk 0:00:54]} 22. Qe7 {[%clk 0:00:32]}  Ndc5 {[%clk 0:00:46]} 23. Qxb7 {[%clk 0:00:28]}  Nxb7 {[%clk 0:00:47]} 24. Rb5 {[%clk 0:00:27]}  Nd6 {[%clk 0:00:46]} 25. Rb6 {[%clk 0:00:26]}  Ne4 {[%clk 0:00:46]} 26. Bxb4 {[%clk 0:00:25]}  Nxb4 {[%clk 0:00:41]} 27. Rxb4 {[%clk 0:00:24]}  dxe3 {[%clk 0:00:40]} 28. fxe3 {[%clk 0:00:23]}  Rfd8 {[%clk 0:00:36]} 29. Nf2 {[%clk 0:00:14]}  Ng5 {[%clk 0:00:32]} 30. Rc2 {[%clk 0:00:14]}  Nf3+ {[%clk 0:00:31]} 31. Kf1 {[%clk 0:00:13]}  Ra1+ {[%clk 0:00:29]} 0-1


[Site "https://www.chess.com"]

[Event "Titled Tuesday Blitz October 19 2021"]
[White "Sethuraman, S.P."]
[Black "Jobava, Baadur"]
[WhiteFideId "5021596"]
[BlackFideId "13601520"]
[WhiteElo "2477"]
[BlackElo "2731"]
[Result "0-1"]
[Round "05"]
[TimeControl "180+1"]
[Date "2021.10.19"]
[WhiteClock "0:00:04"]
[BlackClock "0:01:15"]

1. d4 {[%clk 0:03:00]}  d5 {[%clk 0:03:00]} 2. c4 {[%clk 0:03:00]}  c6 {[%clk 0:03:01]} 3. Nf3 {[%clk 0:02:59]}  Nf6 {[%clk 0:03:01]} 4. e3 {[%clk 0:02:59]}  Bf5 {[%clk 0:03:01]} 5. Nc3 {[%clk 0:02:59]}  e6 {[%clk 0:03:01]} 6. Nh4 {[%clk 0:02:59]}  g6 {[%clk 0:03:02]} 7. Qb3 {[%clk 0:02:55]}  Qe7 {[%clk 0:03:02]} 8. Nxf5 {[%clk 0:02:45]}  gxf5 {[%clk 0:03:03]} 9. g3 {[%clk 0:02:42]}  Qb4 {[%clk 0:03:02]} 10. Qxb4 {[%clk 0:02:33]}  Bxb4 {[%clk 0:03:01]} 11. Bd2 {[%clk 0:02:34]}  Nbd7 {[%clk 0:02:54]} 12. f3 {[%clk 0:02:34]}  a5 {[%clk 0:02:52]} 13. Rc1 {[%clk 0:02:31]}  h5 {[%clk 0:02:51]} 14. Kf2 {[%clk 0:02:30]}  h4 {[%clk 0:02:50]} 15. Be2 {[%clk 0:02:29]}  Ke7 {[%clk 0:02:50]} 16. a3 {[%clk 0:02:16]}  Bd6 {[%clk 0:02:48]} 17. cxd5 {[%clk 0:01:57]}  exd5 {[%clk 0:02:49]} 18. Bd3 {[%clk 0:01:53]}  Ke6 {[%clk 0:02:48]} 19. Ne2 {[%clk 0:01:52]}  a4 {[%clk 0:02:47]} 20. Rcg1 {[%clk 0:01:46]}  Nb6 {[%clk 0:02:40]} 21. Nf4+ {[%clk 0:01:44]}  Bxf4 {[%clk 0:02:37]} 22. gxf4 {[%clk 0:01:45]}  Nc4 {[%clk 0:02:27]} 23. Bc1 {[%clk 0:01:43]}  Rhg8 {[%clk 0:02:16]} 24. Rg5 {[%clk 0:01:38]}  Rxg5 {[%clk 0:02:15]} 25. fxg5 {[%clk 0:01:39]}  Ne8 {[%clk 0:02:12]} 26. Rg1 {[%clk 0:01:25]}  Ned6 {[%clk 0:02:06]} 27. g6 {[%clk 0:01:05]}  f6 {[%clk 0:02:07]} 28. Kg2 {[%clk 0:00:49]}  Ke7 {[%clk 0:01:56]} 29. Kh3 {[%clk 0:00:48]}  Kf8 {[%clk 0:01:57]} 30. Kxh4 {[%clk 0:00:32]}  Kg7 {[%clk 0:01:57]} 31. Kg3 {[%clk 0:00:33]}  Rh8 {[%clk 0:01:52]} 32. Rg2 {[%clk 0:00:31]}  Kxg6 {[%clk 0:01:52]} 33. Kf4+ {[%clk 0:00:18]}  Kf7 {[%clk 0:01:52]} 34. Bxf5 {[%clk 0:00:19]}  Nxf5 {[%clk 0:01:53]} 35. Kxf5 {[%clk 0:00:19]}  Rh4 {[%clk 0:01:54]} 36. Rg4 {[%clk 0:00:13]}  Rxh2 {[%clk 0:01:54]} 37. e4 {[%clk 0:00:13]}  Rf2 {[%clk 0:01:44]} 38. exd5 {[%clk 0:00:09]}  cxd5 {[%clk 0:01:42]} 39. Kf4 {[%clk 0:00:08]}  Rf1 {[%clk 0:01:39]} 40. Be3 {[%clk 0:00:07]}  Nxb2 {[%clk 0:01:39]} 41. Rh4 {[%clk 0:00:05]}  Kg6 {[%clk 0:01:32]} 42. Rg4+ {[%clk 0:00:05]}  Kf7 {[%clk 0:01:33]} 43. Rh4 {[%clk 0:00:06]}  Re1 {[%clk 0:01:27]} 44. Rh7+ {[%clk 0:00:05]}  Kg6 {[%clk 0:01:27]} 45. Rxb7 {[%clk 0:00:06]}  Nd3+ {[%clk 0:01:28]} 46. Kg3 {[%clk 0:00:04]}  Rxe3 {[%clk 0:01:29]} 47. Rb5 {[%clk 0:00:04]}  f5 {[%clk 0:01:15]} 0-1


[Site "https://www.chess.com"]

[Event "Titled Tuesday Blitz October 19 2021"]
[White "Shtembuliak, Evgeny"]
[Black "Svidler, Peter"]
[WhiteFideId "14113325"]
[BlackFideId "4102142"]
[WhiteElo "2504"]
[BlackElo "2709"]
[Result "0-1"]
[Round "05"]
[TimeControl "180+1"]
[Date "2021.10.19"]
[WhiteClock "0:00:18"]
[BlackClock "0:00:12"]

1. e4 {[%clk 0:03:00]}  c5 {[%clk 0:02:59]} 2. Nc3 {[%clk 0:03:01]}  Nc6 {[%clk 0:02:52]} 3. Bb5 {[%clk 0:03:00]}  Nd4 {[%clk 0:02:51]} 4. Bc4 {[%clk 0:03:00]}  e6 {[%clk 0:02:51]} 5. Nge2 {[%clk 0:03:01]}  a6 {[%clk 0:02:48]} 6. Nxd4 {[%clk 0:03:00]}  cxd4 {[%clk 0:02:47]} 7. Ne2 {[%clk 0:03:01]}  Nf6 {[%clk 0:02:45]} 8. d3 {[%clk 0:03:00]}  d5 {[%clk 0:02:27]} 9. exd5 {[%clk 0:03:01]}  Nxd5 {[%clk 0:02:26]} 10. Nxd4 {[%clk 0:02:49]}  Nb6 {[%clk 0:02:26]} 11. Nf3 {[%clk 0:02:33]}  Nxc4 {[%clk 0:02:26]} 12. dxc4 {[%clk 0:02:34]}  Qc7 {[%clk 0:02:26]} 13. Qd4 {[%clk 0:02:21]}  b5 {[%clk 0:02:25]} 14. cxb5 {[%clk 0:01:52]}  axb5 {[%clk 0:02:25]} 15. O-O {[%clk 0:01:31]}  Qxc2 {[%clk 0:02:17]} 16. Bh6 {[%clk 0:01:31]}  f6 {[%clk 0:02:14]} 17. Rac1 {[%clk 0:01:25]}  Qa4 {[%clk 0:02:04]} 18. Qc3 {[%clk 0:00:51]}  Bd7 {[%clk 0:01:34]} 19. Be3 {[%clk 0:00:37]}  Be7 {[%clk 0:01:16]} 20. Rfd1 {[%clk 0:00:37]}  b4 {[%clk 0:01:11]} 21. Qc7 {[%clk 0:00:35]}  Rc8 {[%clk 0:01:08]} 22. Qxc8+ {[%clk 0:00:24]}  Bxc8 {[%clk 0:01:08]} 23. Rxc8+ {[%clk 0:00:24]}  Kf7 {[%clk 0:01:08]} 24. b3 {[%clk 0:00:25]}  Qxa2 {[%clk 0:00:56]} 25. Rxh8 {[%clk 0:00:25]}  Qxb3 {[%clk 0:00:56]} 26. Rc1 {[%clk 0:00:25]}  Qd3 {[%clk 0:00:46]} 27. Rb8 {[%clk 0:00:24]}  Bd6 {[%clk 0:00:45]} 28. Rb7+ {[%clk 0:00:25]}  Kg6 {[%clk 0:00:41]} 29. h4 {[%clk 0:00:25]}  h5 {[%clk 0:00:39]} 30. Bd2 {[%clk 0:00:23]}  b3 {[%clk 0:00:37]} 31. Rc3 {[%clk 0:00:19]}  Qb1+ {[%clk 0:00:24]} 32. Be1 {[%clk 0:00:20]}  b2 {[%clk 0:00:20]} 33. Rcb3 {[%clk 0:00:20]}  Be5 {[%clk 0:00:14]} 34. g3 {[%clk 0:00:20]}  Bd4 {[%clk 0:00:13]} 35. Kg2 {[%clk 0:00:20]}  Qd1 {[%clk 0:00:11]} 36. Nxd4 {[%clk 0:00:20]}  Qxd4 {[%clk 0:00:11]} 37. Rxb2 {[%clk 0:00:21]}  Qe4+ {[%clk 0:00:11]} 38. Kf1 {[%clk 0:00:21]}  Qh1+ {[%clk 0:00:12]} 39. Ke2 {[%clk 0:00:22]}  Qe4+ {[%clk 0:00:12]} 40. Kd2 {[%clk 0:00:22]}  Qd4+ {[%clk 0:00:12]} 41. Kc2 {[%clk 0:00:22]}  Qc5+ {[%clk 0:00:12]} 42. Kd1 {[%clk 0:00:22]}  Qd4+ {[%clk 0:00:11]} 43. Bd2 {[%clk 0:00:23]}  Qxf2 {[%clk 0:00:10]} 44. R7b3 {[%clk 0:00:23]}  Qf1+ {[%clk 0:00:09]} 45. Be1 {[%clk 0:00:23]}  Qf5 {[%clk 0:00:09]} 46. Rc2 {[%clk 0:00:23]}  Qd5+ {[%clk 0:00:09]} 47. Ke2 {[%clk 0:00:18]}  Qxb3 {[%clk 0:00:09]} 48. Rd2 {[%clk 0:00:19]}  Qc4+ {[%clk 0:00:09]} 49. Rd3 {[%clk 0:00:20]}  Kf5 {[%clk 0:00:09]} 50. Bd2 {[%clk 0:00:21]}  Kg4 {[%clk 0:00:09]} 51. Be3 {[%clk 0:00:20]}  e5 {[%clk 0:00:09]} 52. Kd2 {[%clk 0:00:20]}  Qa2+ {[%clk 0:00:10]} 53. Ke1 {[%clk 0:00:20]}  Kxg3 {[%clk 0:00:10]} 54. Bh6+ {[%clk 0:00:18]}  Kxh4 {[%clk 0:00:11]} 55. Bxg7 {[%clk 0:00:19]}  Qb1+ {[%clk 0:00:11]} 56. Ke2 {[%clk 0:00:19]}  Qb5 {[%clk 0:00:10]} 57. Bxf6+ {[%clk 0:00:19]}  Kg4 {[%clk 0:00:11]} 58. Ke3 {[%clk 0:00:18]}  Qb6+ {[%clk 0:00:11]} 59. Ke2 {[%clk 0:00:18]}  Qxf6 {[%clk 0:00:12]} 0-1


[Site "https://www.chess.com"]